bitfinex-derivatives/quotes_SOLF0:USTF0_20250613
["timestamp","ask_amount","ask_price","bid_price","bid_amount"]
[1749832923221,6.85042633,146.94,146.91,6.85075794]
[1749832923413,0.04892633,146.94,146.91,6.85075794]
[1749832923618,0.04892633,146.94,146.91,0.04795794]
[1749832923814,0.04892633,146.94,146.92,6.8023]
[1749832924210,0.04892633,146.94,146.91,0.04795794]
[1749832924910,6.85052633,146.94,146.91,0.04795794]
[1749832925119,0.04892633,146.94,146.91,0.04795794]
[1749832925621,6.85072633,146.94,146.91,6.85075794]
[1749832926712,6.8024,146.92,146.91,0.04795794]
[1749832928321,0.04892633,146.94,146.91,0.04795794]
[1749832929624,11.84304054,146.93,146.91,0.04795794]
[1749832929822,2.3283,146.92,146.86,37.3]
[1749832930523,6.8034,146.9,146.86,37.3]
[1749832930734,0.05212953,146.89,146.87,0.04407839]
[1749832931227,0.05212953,146.89,146.87,6.84847839]
[1749832932223,0.05212953,146.89,146.87,0.04407839]
[1749832932224,6.85602953,146.89,146.87,0.04407839]
[1749832934916,6.8043,146.88,146.87,0.04407839]
[1749832935731,0.05212953,146.89,146.87,0.04407839]
[1749832935932,0.05212953,146.89,146.87,6.84867839]
[1749832936134,0.05212953,146.89,146.87,0.04407839]
[1749832936729,0.05212953,146.89,146.87,37.34407839]
[1749832937526,0.05212953,146.89,146.87,0.04407839]
[1749832937727,0.05212953,146.89,146.83,37.3]
[1749832938737,6.8059,146.85,146.83,37.3]
[1749832938930,6.84916974,146.85,146.83,37.3]
[1749832939235,0.04326974,146.85,146.83,0.04443589]
[1749832939640,6.8061,146.84,146.83,0.04443589]
[1749832940026,0.04326974,146.85,146.83,0.04443589]
[1749832941336,0.04326974,146.85,146.84,6.8061]
[1749832941533,0.04326974,146.85,146.83,0.04443589]
[1749832941727,6.84916974,146.85,146.83,0.04443589]
[1749832941927,0.04326974,146.85,146.83,0.04443589]
[1749832943132,6.84916974,146.85,146.83,0.04443589]
[1749832943435,0.04326974,146.85,146.83,0.04443589]
[1749832943931,6.84916974,146.85,146.83,6.85093589]
[1749832944139,0.04326974,146.85,146.83,0.04443589]
[1749832944532,0.04326974,146.85,146.83,6.85063589]
[1749832945140,0.04326974,146.85,146.84,6.8061]
[1749832947828,0.04326974,146.85,146.83,6.85083589]
[1749832948027,0.04326974,146.85,146.83,0.04443589]
[1749832948940,0.04326974,146.85,146.83,6.85073589]
[1749832949132,0.04326974,146.85,146.83,0.04443589]
[1749832949935,6.84916974,146.85,146.83,0.04443589]
[1749832950334,0.04326974,146.85,146.84,6.8061]
[1749832951840,0.04326974,146.85,146.83,6.85073589]
[1749832952039,0.04326974,146.85,146.83,0.04443589]
[1749832953243,0.04326974,146.85,146.83,6.85063589]
[1749832955247,0.04326974,146.85,146.84,6.8061]
[1749832956347,0.04326974,146.85,146.83,6.85073589]
[1749832957138,0.04326974,146.85,146.83,0.04443589]
[1749832957740,0.04326974,146.85,146.83,6.85073589]
[1749832958036,6.8061,146.84,146.83,0.04443589]
[1749832958235,11.89915133,146.85,146.77,37.3]
[1749832958447,2.3329,146.84,146.77,37.3]
[1749832958640,6.8073,146.82,146.78,6.8087]
[1749832958836,2.3329,146.84,146.77,37.3]
[1749832959236,6.8076,146.81,146.79,0.05108816]
[1749832959642,0.04995439,146.82,146.79,0.05108816]
[1749832959848,0.04995439,146.82,146.81,6.8075]
[1749832961952,2.2998,146.87,146.81,37.28]
[1749832962247,2.2998,146.87,146.78,39.4472]
[1749832962451,2.2998,146.87,146.79,6.8082]
[1749832962452,14.15568159,146.87,146.79,6.8082]
[1749832962658,6.8072,146.82,146.79,6.8082]
[1749832962847,0.0489538,146.82,146.79,0.04813326]
[1749832963047,0.0489538,146.82,146.79,6.85653326]
[1749832963447,6.8075,146.81,146.79,6.85653326]
[1749832963642,0.0489538,146.82,146.8,6.8079]
[1749832963850,6.8078,146.81,146.79,0.04813326]
[1749832964049,0.0489538,146.82,146.79,0.04813326]
[1749832964455,6.8079,146.81,146.79,0.04813326]
[1749832964852,0.0489538,146.82,146.79,0.04813326]
[1749832965255,6.808,146.8,146.79,0.04813326]
[1749832965955,6.8077,146.81,146.79,0.04813326]
[1749832966158,0.0489538,146.82,146.79,0.04813326]
[1749832966759,6.808,146.8,146.79,0.04813326]
[1749832967854,6.8077,146.81,146.79,0.04813326]
[1749832968056,0.0489538,146.82,146.79,0.04813326]
[1749832970354,0.0489538,146.82,146.8,6.8077]
[1749832970652,6.8563538,146.82,146.79,0.04813326]
[1749832970852,0.0489538,146.82,146.79,0.04813326]
[1749832971254,6.808,146.8,146.79,0.04813326]
[1749832971459,0.0489538,146.82,146.79,0.04813326]
[1749832972361,6.808,146.8,146.79,0.04813326]
[1749832972965,0.0489538,146.82,146.79,0.04813326]
[1749832973463,6.8075,146.81,146.79,0.04813326]
[1749832974854,6.808,146.8,146.79,0.04813326]
[1749832979660,14.08205515,146.82,146.75,37.28]
[1749832979963,6.8088,146.79,146.76,6.8098]
[1749832980168,14.03310135,146.82,146.76,6.8098]
[1749832980667,0.04815684,146.8,146.78,0.04490387]
[1749832982168,6.8084,146.79,146.78,0.04490387]
[1749832982766,0.04815684,146.8,146.78,6.85340387]
[1749832983162,0.04815684,146.8,146.79,6.8084]
[1749832983865,6.33135381,146.89,146.79,55.95410135]
[1749832984071,5.59695424,146.88,146.81,11.85410135]
[1749832984365,41.8944,146.9,146.86,6.8052]
[1749832984567,5.59735669,146.89,146.86,11.85410135]
[1749832984865,0.04933589,146.89,146.88,6.8043]
[1749832987661,429.4,146.96,146.9,6.8032]
[1749832987962,5.59442855,146.95,146.9,11.85410135]
[1749832988161,37.28,146.96,146.9,11.85410135]
[1749832988558,62.35405516,146.99,146.9,11.85410135]
[1749832988759,6.8015,146.94,146.93,0.05011986]
[1749832988961,0.04645583,146.96,146.93,0.05011986]
[1749832990464,0.04645583,146.96,146.94,6.8014]
[1749832991471,0.04645583,146.96,146.94,11.85410135]
[1749832992170,4.5722,147.03,146.94,11.85410135]
[1749832993064,0.04868716,147.0,146.97,0.05135122]
[1749832994367,6.7996,146.99,146.97,0.05135122]
[1749832994562,0.04868716,147.0,146.97,0.05135122]
[1749832995372,6.7992,146.99,146.97,0.05135122]
[1749832995672,0.04868716,147.0,146.97,0.05135122]
[1749832996173,6.84768716,147.0,146.97,0.05135122]
[1749832996671,6.84768716,147.0,146.97,6.85145122]
[1749832996872,0.04868716,147.0,146.97,0.05135122]
[1749832997766,0.04868716,147.0,146.98,6.7994]
[1749832998476,0.04868716,147.0,146.97,0.05135122]
[1749832999070,6.84778716,147.0,146.97,6.85145122]
[1749832999274,6.84778716,147.0,146.97,0.05135122]
[1749832999471,0.04868716,147.0,146.97,0.05135122]
[1749833000578,6.84748716,147.0,146.97,6.85145122]
[1749833000873,0.04868716,147.0,146.97,0.05135122]
[1749833001077,0.04868716,147.0,146.99,6.7992]
[1749833001972,6.7966,147.05,147.02,6.7978]
[1749833002474,6.7962,147.06,147.02,6.7978]
[1749833002779,2.207,147.08,147.03,6.7973]
[1749833002972,6.7964,147.05,147.04,0.04291574]
[1749833003178,18.65050135,147.05,147.04,0.04291574]
[1749833003480,6.7964,147.05,147.04,0.04291574]
[1749833004176,6.7983,147.01,146.97,37.22]
[1749833004374,11.85410135,147.05,146.97,37.22]
[1749833004577,6.7973,147.04,146.97,37.22]
[1749833004776,11.85410135,147.07,146.97,37.22]
[1749833005076,0.04765834,147.03,147.01,0.04881284]
[1749833006981,0.04765834,147.03,147.02,6.7978]
[1749833007878,0.04765834,147.03,147.01,49.12291419]
[1749833008282,0.04765834,147.03,147.01,37.26881284]
[1749833009181,0.04765834,147.03,147.01,0.04881284]
[1749833012985,4.51965834,147.03,147.01,0.04881284]
[1749833013588,2.21295834,147.03,147.01,0.04881284]
[1749833013785,0.04765834,147.03,147.01,0.04881284]
[1749833014284,0.04765834,147.03,147.01,13.04881284]
[1749833014790,0.04765834,147.03,147.02,6.7978]
[1749833015790,0.04765834,147.03,147.01,13.04881284]
[1749833016288,6.84525834,147.03,147.01,13.04881284]
[1749833017089,6.7978,147.02,147.01,13.04881284]
[1749833020191,6.8006,146.96,146.94,37.2]
[1749833020388,6.8006,146.96,146.93,6.8017]
[1749833020799,6.8003,146.97,146.94,6.8012]
[1749833021184,0.04913972,146.97,146.94,6.84921101]
[1749833021792,6.8008,146.96,146.94,0.04801101]
[1749833022293,6.84943972,146.97,146.94,6.84931101]
[1749833022494,0.04913972,146.97,146.94,0.04801101]
[1749833022794,49.05410135,147.05,146.95,49.05410135]
[1749833023396,6.7986,147.01,146.98,6.7994]
[1749833023690,6.7986,147.01,146.98,6.84883201]
[1749833023896,6.84924246,147.01,146.98,6.84883201]
[1749833024493,0.05064246,147.01,146.99,6.799]
[1749833024999,0.05064246,147.01,146.98,6.84893201]
[1749833025398,6.7989,147.0,146.98,6.84893201]
[1749833026392,0.05064246,147.01,146.98,0.04943201]
[1749833027098,0.05064246,147.01,146.99,6.7988]
[1749833027397,0.05064246,147.01,146.98,0.04943201]
[1749833028393,0.05064246,147.01,146.99,6.7988]
[1749833028596,0.05064246,147.01,146.98,0.04943201]
[1749833028794,0.05064246,147.01,146.99,6.7991]
[1749833029095,6.84914246,147.01,146.99,6.7991]
[1749833029297,6.84914246,147.01,146.98,0.04943201]
[1749833029496,6.84914246,147.01,146.98,6.84863201]
[1749833030202,6.84914246,147.01,146.99,6.7992]
[1749833031002,6.84914246,147.01,146.98,6.84873201]
[1749833031210,6.7992,146.99,146.98,0.04943201]
[1749833032308,6.8009,146.96,146.92,37.2]
[1749833033203,0.04325498,146.95,146.94,6.8012]
[1749833034201,0.04325498,146.95,146.93,0.04678664]
[1749833034606,6.8015,146.94,146.93,0.04678664]
[1749833036907,6.8028,146.92,146.89,37.2]
[1749833037204,6.8028,146.92,146.89,44.0036]
[1749833037706,11.85410135,146.95,146.89,37.2]
[1749833038003,0.04707266,146.93,146.91,0.05224571]
[1749833038300,6.8024,146.92,146.91,0.05224571]
[1749833040208,11.90117401,146.93,146.86,37.22]
[1749833040401,4.5697,146.94,146.86,37.22]
[1749833040593,4.5697,146.94,146.9,6.8031]
[1749833040803,37.2,146.97,146.87,11.85410135]
[1749833041001,37.2,146.97,146.87,14.22240135]
[1749833041202,0.04822828,146.93,146.91,0.04645309]
[1749833041800,6.85042828,146.93,146.91,0.04645309]
[1749833042202,0.04822828,146.93,146.91,0.04645309]
[1749833042409,11.90232963,146.93,146.86,37.22]
[1749833042607,2.2112,146.92,146.86,37.22]
[1749833042801,6.8046,146.88,146.86,37.22]
[1749833043000,2.2112,146.92,146.86,37.22]
[1749833043406,6.85399958,146.9,146.88,0.04293111]
[1749833043605,0.05049958,146.9,146.88,0.04293111]
[1749833044213,0.05049958,146.9,146.88,13.04293111]
[1749833044915,0.05049958,146.9,146.89,6.8038]
[1749833045110,37.22,146.96,146.88,13.04293111]
[1749833045316,37.22,146.96,146.89,2.1877]
[1749833045505,6.8016,146.94,146.91,6.8026]
[1749833046008,2.2059,146.97,146.9,37.22]
[1749833046208,0.04783648,146.95,146.92,0.0498883]
[1749833046512,0.04783648,146.95,146.92,6.8522883]
[1749833047210,0.04783648,146.95,146.92,0.0498883]
[1749833047807,6.8018,146.94,146.92,0.0498883]
[1749833048112,0.04783648,146.95,146.92,0.0498883]
[1749833048318,6.8019,146.94,146.92,0.0498883]
[1749833048907,0.04783648,146.95,146.92,0.0498883]
[1749833049107,0.04783648,146.95,146.92,11.90398965]
[1749833049507,0.04783648,146.95,146.94,6.8015]
[1749833051400,0.04783648,146.95,146.93,6.8018]
[1749833051607,0.04783648,146.95,146.92,0.0498883]
[1749833051902,6.84923648,146.95,146.92,6.8520883]
[1749833052804,6.84923648,146.95,146.93,6.8019]
[1749833053001,6.8015,146.94,146.92,0.0498883]
[1749833053914,0.04783648,146.95,146.93,6.8019]
[1749833054106,0.04783648,146.95,146.92,0.0498883]
[1749833054509,0.04783648,146.95,146.94,6.8015]
[1749833055511,0.04783648,146.95,146.93,6.8017]
[1749833055713,6.84883648,146.95,146.93,6.8017]
[1749833056012,0.04783648,146.95,146.94,6.8015]
[1749833056613,0.04783648,146.95,146.93,6.8017]
[1749833057515,0.04783648,146.95,146.94,6.8015]
[1749833059020,39.4515,147.02,146.98,6.7995]
[1749833059313,6.7989,147.0,146.98,6.7995]
[1749833059814,46.2495,147.02,146.99,6.7992]
[1749833060115,0.04609781,147.02,146.99,0.0501759]
[1749833060318,0.04609781,147.02,147.01,6.7978]
[1749833061914,6.7983,147.01,146.99,6.8491759]
[1749833062115,0.04609781,147.02,146.99,0.0501759]
[1749833062419,0.04609781,147.02,147.0,6.7985]
[1749833062621,0.04609781,147.02,146.99,0.0501759]
[1749833063118,0.04609781,147.02,147.0,6.7987]
[1749833063323,0.04609781,147.02,146.99,0.0501759]
[1749833063709,0.04609781,147.02,147.01,6.7983]
[1749833064316,0.04609781,147.02,147.0,6.7986]
[1749833064717,0.04609781,147.02,147.01,6.7983]
[1749833066419,6.7957,147.07,147.04,6.7968]
[1749833066622,4.6059,147.08,147.04,6.7968]
[1749833066817,4.6059,147.08,147.02,37.2]
[1749833067022,4.6059,147.08,147.02,43.9975]
[1749833067223,4.6059,147.08,147.02,37.2]
[1749833067421,6.84277931,147.06,147.04,0.04482156]
[1749833068819,0.04647931,147.06,147.04,6.84162156]
[1749833069221,0.04647931,147.06,147.04,0.04482156]
[1749833069422,0.04647931,147.06,147.05,6.7964]
[1749833070024,4.562,147.13,147.08,6.7946]
[1749833070418,6.7939,147.11,147.08,6.7946]
[1749833071126,11.89842218,147.11,147.08,0.04869584]
[1749833071519,6.7959,147.07,147.04,6.7966]
[1749833071721,11.85410135,147.11,147.04,6.7966]
[1749833072221,6.7957,147.07,147.04,6.7966]
[1749833072425,11.85410135,147.11,147.04,6.7966]
[1749833072623,6.7955,147.07,147.06,0.04947156]
[1749833074524,6.7952,147.08,147.06,0.04947156]
[1749833075628,6.7955,147.07,147.06,0.04947156]
[1749833076418,6.7952,147.08,147.06,0.04947156]
[1749833076621,0.04902095,147.09,147.06,0.04947156]
[1749833077131,6.7953,147.08,147.06,0.04947156]
[1749833078331,6.7955,147.07,147.06,0.04947156]
[1749833078727,6.7954,147.08,147.06,6.84537156]
[1749833078925,0.04902095,147.09,147.06,0.04947156]
[1749833080128,6.7953,147.08,147.06,6.84517156]
[1749833080329,0.04902095,147.09,147.06,6.84517156]
[1749833080839,0.04902095,147.09,147.06,0.04947156]
[1749833081221,11.86463795,147.09,147.06,0.04947156]
[1749833081424,11.815617,147.07,147.0,37.16]
[1749833081632,6.7972,147.04,147.01,6.798]
[1749833082025,11.815617,147.07,147.01,6.798]
[1749833082227,6.7975,147.03,147.01,6.798]
[1749833082426,6.84660641,147.03,147.01,6.84641778]
[1749833082825,0.04910641,147.03,147.01,0.04841778]
[1749833083737,6.7978,147.02,147.01,0.04841778]
[1749833086437,6.84660641,147.03,147.01,0.04841778]
[1749833086939,6.7978,147.02,147.01,0.04841778]
[1749833087145,0.04910641,147.03,146.97,37.16]
[1749833087326,11.815617,147.05,146.97,37.16]
[1749833087637,6.799,147.0,146.97,37.16]
[1749833088234,0.04664848,147.0,146.98,6.7994]
[1749833088533,0.04664848,147.0,146.97,37.21036401]
[1749833088731,0.04664848,147.0,146.99,6.7992]
[1749833088929,4.5254,147.07,146.99,11.815617]
[1749833089331,6.7966,147.05,147.02,6.7975]
[1749833089739,6.7962,147.06,147.03,6.797]
[1749833089931,6.84707763,147.06,147.03,6.84653966]
[1749833090132,0.05087763,147.06,147.03,0.04953966]
[1749833090333,0.05087763,147.06,147.05,6.7964]
[1749833090835,6.7937,147.11,147.05,48.975617]
[1749833091035,16.399617,147.12,147.05,37.16]
[1749833091329,11.815617,147.1,147.02,37.16]
[1749833091536,11.815617,147.08,147.0,37.16]
[1749833091735,0.04325223,147.05,147.03,0.04993158]
[1749833093636,0.04325223,147.05,147.03,6.84683158]
[1749833094529,6.83965223,147.05,147.03,6.84683158]
[1749833094731,0.04325223,147.05,147.03,6.84683158]
[1749833096041,0.04325223,147.05,147.04,6.7969]
[1749833096735,0.04325223,147.05,147.04,43.9569]
[1749833096940,37.16,147.11,147.04,37.16]
[1749833097443,6.7945,147.1,147.07,6.7954]
[1749833097841,0.04669002,147.1,147.07,0.04561474]
[1749833098344,6.795,147.08,147.07,0.04561474]
[1749833098844,12.46313183,147.08,147.07,0.04561474]
[1749833100445,12.46313183,147.08,147.07,1.474e-05]
[1749833100748,30.54550104,147.08,146.98,37.16]
[1749833101045,11.815617,147.04,146.98,37.16]
[1749833101232,11.815617,147.04,146.95,37.16]
[1749833101432,11.815617,147.02,146.95,37.16]
[1749833101637,0.04969343,147.0,146.97,0.04496717]
[1749833101846,6.8,146.98,146.97,0.04496717]
[1749833103751,6.8015,146.94,146.9,37.16]
[1749833103937,6.8015,146.94,146.91,6.8026]
[1749833104139,2.1977,146.97,146.9,37.16]
[1749833104538,2.1977,146.97,146.9,48.975617]
[1749833104838,57.56676921,147.01,146.92,0.05232286]
[1749833104839,0.0435268,146.95,146.92,0.05232286]
[1749833105033,0.04746449,146.95,146.92,0.05078665]
[1749833105746,0.04746449,146.95,146.94,6.8015]
[1749833106048,0.04746449,146.95,146.92,0.05078665]
[1749833107647,0.04746449,146.95,146.93,6.8019]
[1749833107847,0.04746449,146.95,146.92,0.05078665]
[1749833108050,6.8015,146.94,146.92,6.85308665]
[1749833108250,0.04746449,146.95,146.92,6.85308665]
[1749833108442,0.04746449,146.95,146.92,0.05078665]
[1749833108748,0.04746449,146.95,146.93,6.8015]
[1749833109135,0.04746449,146.95,146.92,6.85298665]
[1749833109347,0.04746449,146.95,146.92,0.05078665]
[1749833109848,0.04746449,146.95,146.94,6.8015]
[1749833110149,0.04746449,146.95,146.92,0.05078665]
[1749833110150,0.04746449,146.95,146.93,6.8016]
[1749833110855,0.04746449,146.95,146.92,0.05078665]
[1749833111238,0.04746449,146.95,146.94,6.8015]
[1749833111843,46.18,147.0,146.97,6.7999]
[1749833112048,39.381,147.0,146.92,11.815617]
[1749833112243,39.381,147.0,146.94,37.12]
[1749833112438,9.0001,147.0,146.96,6.8003]
[1749833112642,9.0001,147.0,146.94,37.12]
[1749833112940,0.04545389,146.98,146.97,6.7998]
[1749833114340,0.04545389,146.98,146.96,0.05051895]
[1749833115051,6.8001,146.97,146.96,0.05051895]
[1749833116547,6.84535389,146.98,146.96,0.05051895]
[1749833116849,0.04545389,146.98,146.96,11.86613595]
[1749833117047,0.04545389,146.98,146.97,6.8001]
[1749833118658,0.04545389,146.98,146.96,6.85091895]
[1749833118956,0.04545389,146.98,146.96,0.05051895]
[1749833119139,0.04545389,146.98,146.97,6.8001]
[1749833120350,0.04545389,146.98,146.96,0.05051895]
[1749833120548,0.04545389,146.98,146.91,37.12]
[1749833120744,11.815617,146.97,146.89,2.1784]
[1749833120945,11.815617,146.95,146.89,2.1784]
[1749833121151,6.8018,146.94,146.89,2.1784]
[1749833121447,6.8018,146.94,146.91,6.8026]
[1749833121651,6.8532791,146.94,146.91,6.85113019]
[1749833122853,0.0514791,146.94,146.91,0.04853019]
[1749833123255,6.8024,146.92,146.91,0.04853019]
[1749833123452,0.0514791,146.94,146.91,0.04853019]
[1749833124249,11.815617,146.93,146.91,0.04853019]
[1749833124452,6.8038,146.9,146.88,13.0]
[1749833124954,6.8038,146.89,146.88,13.0]
[1749833125342,0.05171512,146.9,146.88,13.0]
[1749833126451,6.8038,146.89,146.88,13.0]
[1749833126645,0.05171512,146.9,146.84,37.14]
[1749833126850,11.90351715,146.9,146.81,37.14]
[1749833127050,6.805,146.87,146.84,6.8057]
[1749833127454,11.85180203,146.9,146.81,37.14]
[1749833127643,6.8054,146.86,146.83,6.8064]
[1749833127848,6.8054,146.86,146.84,0.0493879]
[1749833128050,0.04603389,146.87,146.86,6.8052]
[1749833130655,2.3218,146.92,146.9,6.8032]
[1749833130954,37.14,146.96,146.87,11.84545529]
[1749833131153,11.84545529,146.94,146.87,6.8044]
[1749833131556,6.8035,146.9,146.87,6.8044]
[1749833131856,6.8035,146.9,146.89,0.05078513]
[1749833132755,6.8051,146.87,146.82,37.14]
[1749833132955,11.84545529,146.9,146.82,37.14]
[1749833133160,48.98545529,146.9,146.84,6.8058]
[1749833133349,6.805,146.87,146.84,6.8058]
[1749833133553,37.14,146.9,146.82,37.14]
[1749833133753,0.0486825,146.87,146.85,0.04340759]
[1749833133955,6.8534825,146.87,146.85,0.04340759]
[1749833134260,0.0486825,146.87,146.85,0.04340759]
[1749833135053,6.8052,146.86,146.85,0.04340759]
[1749833136561,0.0486825,146.87,146.85,0.04340759]
[1749833136961,0.0486825,146.87,146.86,6.8052]
[1749833137356,0.0486825,146.87,146.85,0.04340759]
[1749833137657,0.0486825,146.87,146.85,6.84870759]
[1749833137857,0.0486825,146.87,146.85,0.04340759]
[1749833138258,0.0486825,146.87,146.86,6.8052]
[1749833140462,0.0486825,146.87,146.85,0.04340759]
[1749833141461,6.8052,146.86,146.85,0.04340759]
[1749833143457,11.89413779,146.87,146.79,37.14]
[1749833143657,11.84545529,146.85,146.79,37.14]
[1749833143854,48.98545529,146.85,146.76,37.14]
[1749833144460,0.04638307,146.82,146.79,0.04647021]
[1749833144659,6.808,146.8,146.79,0.04647021]
[1749833146967,2.25418307,146.82,146.73,37.14]
[1749833146968,6.8099,146.76,146.73,37.14]
[1749833147162,48.98545529,146.81,146.73,37.14]
[1749833147359,37.14,146.81,146.7,39.4502]
[1749833147565,11.84545529,146.77,146.7,2.3102]
[1749833147864,11.84545529,146.75,146.69,6.8129]
[1749833148070,49.02859659,146.75,146.69,6.8129]
[1749833148573,6.8119,146.72,146.68,6.8132]
[1749833148870,0.04354955,146.71,146.68,6.8132]
[1749833149071,0.04354955,146.71,146.67,37.14]
[1749833149367,0.04354955,146.71,146.66,3.93517059]
[1749833149368,0.04354955,146.71,146.66,2.74915737]
[1749833150671,6.85594955,146.71,146.66,2.74915737]
[1749833150872,0.04354955,146.71,146.66,2.74915737]
[1749833151074,6.85564955,146.71,146.68,6.8133]
[1749833151972,0.04354955,146.71,146.69,6.8129]
[1749833152169,0.04354955,146.71,146.66,2.74915737]
[1749833153170,6.85594955,146.71,146.66,2.74915737]
[1749833153372,0.04354955,146.71,146.66,2.74915737]
[1749833153573,14.02775529,146.78,146.73,6.8111]
[1749833153760,37.16,146.78,146.69,11.84545529]
[1749833153965,37.16,146.78,146.68,37.16]
[1749833153966,37.16,146.78,146.71,11.84545529]
[1749833154165,37.16,146.78,146.7,14.02785529]
[1749833154371,49.00545529,146.78,146.7,2.1824]
[1749833154567,0.0441957,146.75,146.73,0.04873383]
[1749833154868,6.8547957,146.75,146.73,0.04873383]
[1749833155072,0.0441957,146.75,146.73,0.04873383]
[1749833155468,6.8108,146.74,146.73,0.04873383]
[1749833155669,0.0441957,146.75,146.73,0.04873383]
[1749833156375,6.8547957,146.75,146.73,0.04873383]
[1749833156675,0.0441957,146.75,146.73,0.04873383]
[1749833157071,6.8546957,146.75,146.73,0.04873383]
[1749833157376,0.0441957,146.75,146.73,0.04873383]
[1749833158073,0.0441957,146.75,146.74,6.8108]
[1749833158273,2.3701,146.8,146.73,24.89418912]
[1749833158668,6.8091,146.78,146.75,6.8099]
[1749833159276,6.85842153,146.78,146.75,6.85663304]
[1749833159873,6.8095,146.77,146.75,0.04673304]
[1749833160374,0.04932153,146.78,146.75,6.85703304]
[1749833161071,11.89477682,146.78,146.75,0.04673304]
[1749833161269,11.84545529,146.76,146.73,13.0]
[1749833161467,6.8108,146.74,146.73,13.0]
[1749833168280,6.86155569,146.75,146.73,13.0]
[1749833168666,0.05105569,146.75,146.73,13.0]
[1749833169072,0.05105569,146.75,146.73,19.8111]
[1749833171082,6.86145569,146.75,146.73,13.0]
[1749833171273,0.05105569,146.75,146.73,13.0]
[1749833172787,0.05105569,146.75,146.73,19.8112]
[1749833173477,0.05105569,146.75,146.73,13.0]
[1749833174081,6.8108,146.74,146.73,13.0]
[1749833174681,0.05105569,146.75,146.73,13.0]
[1749833175069,6.86165569,146.75,146.73,13.0]
[1749833176076,0.05105569,146.75,146.73,13.0]
[1749833176384,0.05105569,146.75,146.74,6.8108]
[1749833176779,2.2138,146.82,146.73,61.98545529]
[1749833176780,37.14,146.82,146.73,61.98545529]
[1749833177184,6.8092,146.78,146.73,50.14]
[1749833177386,37.14,146.82,146.73,50.14]
[1749833177387,11.84545529,146.79,146.73,50.14]
[1749833177581,6.8097,146.77,146.73,50.14]
[1749833177783,0.04776718,146.76,146.75,6.81]
[1749833177986,37.14,146.82,146.75,6.81]
[1749833177987,0.04916333,146.77,146.75,6.81]
[1749833178187,0.04330963,146.77,146.75,6.85476681]
[1749833178381,0.04330963,146.77,146.75,0.04476681]
[1749833178886,6.85280963,146.77,146.75,0.04476681]
[1749833179781,6.85280963,146.77,146.75,6.85496681]
[1749833179987,0.04330963,146.77,146.75,0.04476681]
[1749833180481,0.04330963,146.77,146.76,6.8098]
[1749833181481,0.04330963,146.77,146.75,0.04476681]
[1749833181985,0.04330963,146.77,146.75,6.85506681]
[1749833182777,6.85270963,146.77,146.75,6.85506681]
[1749833182986,0.04330963,146.77,146.75,6.85506681]
[1749833183179,6.85270963,146.77,146.75,6.85506681]
[1749833183580,0.04330963,146.77,146.76,6.8098]
[1749833184979,0.04330963,146.77,146.75,0.04476681]
[1749833185178,6.85280963,146.77,146.75,0.04476681]
[1749833185483,0.04330963,146.77,146.75,0.04476681]
[1749833186681,6.85260963,146.77,146.75,6.85476681]
[1749833187088,0.04330963,146.77,146.75,6.85476681]
[1749833187290,0.04330963,146.77,146.76,6.8098]
[1749833187686,6.8098,146.76,146.75,0.04476681]
[1749833187882,10.18376824,146.76,146.73,13.0]
[1749833188186,10.18337486,146.75,146.7,37.14]
[1749833188389,10.18338863,146.74,146.7,6.8123]
[1749833188689,14.11175529,146.77,146.7,6.8123]
[1749833188885,0.04902632,146.75,146.72,0.04614081]
[1749833189081,10.1877651,146.74,146.72,0.04614081]
[1749833189277,0.04902632,146.75,146.72,0.04614081]
[1749833189482,6.8112,146.73,146.72,0.04614081]
[1749833189682,11.39637482,146.73,146.72,0.04614081]
[1749833189878,17.0017348,146.73,146.72,0.04614081]
[1749833190084,6.8124,146.71,146.68,6.8134]
[1749833190284,4.90789604,146.7,146.68,6.8134]
[1749833190484,37.14,146.74,146.68,6.8134]
[1749833190691,12.86329668,146.73,146.68,6.8134]
[1749833190892,10.3862533,146.72,146.66,2.74915737]
[1749833191087,6.8135,146.69,146.66,2.74915737]
[1749833191284,0.04414472,146.7,146.66,2.74915737]
[1749833191484,0.04414472,146.7,146.67,6.8137]
[1749833191888,6.85704472,146.7,146.67,6.8137]
[1749833193079,6.8131,146.69,146.66,9.56335737]
[1749833193279,6.8131,146.69,146.66,2.74915737]